bitfinex/quotes_ETHUSD_20210701
["timestamp","ask_amount","ask_price","bid_price","bid_amount"]
[1625106881876,0.31075964,2196.4,2194.9,6.83018]
[1625106881983,1.44155964,2196.4,2194.5,11.38166]
[1625106882077,14.26990364,2196.4,2194.1,11.38285]
[1625106882677,16.06390364,2196.4,2194.1,11.38285]
[1625106882876,8.12605964,2196.4,2194.1,11.38285]
[1625106883182,13.60767716,2196.4,2194.1,11.38285]
[1625106883379,5.01,2196.2,2194.1,11.38285]
[1625106883481,6.83169,2196.3,2194.2,6.5377078]
[1625106883581,0.26075964,2196.4,2194.2,10.9713427]
[1625106883680,0.28875931,2197.0,2194.2,10.9713427]
[1625106883781,0.28875931,2197.0,2194.3,0.64437536]
[1625106883879,0.28875931,2197.0,2194.4,7.28078864]
[1625106884125,0.28875931,2197.0,2194.5,0.6482281]
[1625106884224,0.28875931,2197.0,2194.6,7.01252111]
[1625106884327,0.28875931,2197.0,2194.7,0.64456767]
[1625106884425,0.28875931,2197.0,2194.7,4.08526767]
[1625106884525,0.28875931,2197.0,2195.2,5.01]
[1625106884626,0.28875931,2197.0,2194.9,5.01]
[1625106884728,0.28875931,2197.0,2195.0,0.56121987]
[1625106884826,0.28875931,2197.0,2195.0,0.58131094]
[1625106885028,0.28875931,2197.0,2195.4,6.82897]
[1625106885131,0.31046911,2197.5,2195.6,5.01]
[1625106885227,0.31046911,2197.5,2195.7,0.59560915]
[1625106885579,0.31046911,2197.5,2195.7,2.74909835]
[1625106885677,0.31046911,2197.5,2195.7,7.74883652]
[1625106885880,0.31046911,2197.5,2195.9,5.01]
[1625106885980,31.8757,2197.7,2196.0,0.50967861]
[1625106886577,10.347,2197.7,2196.0,9.49030781]
[1625106886747,10.347,2197.7,2196.0,15.89542557]
[1625106886831,10.347,2197.7,2196.2,5.01]
[1625106886932,10.1449,2198.6,2196.3,6.45226607]
[1625106887030,10.1449,2198.6,2196.3,7.06596365]
[1625106887127,10.1449,2198.6,2196.5,5.01]
[1625106887229,10.0061,2198.7,2196.6,7.73565474]
[1625106887324,10.0061,2198.7,2196.6,12.78228179]
[1625106887522,10.0061,2198.7,2196.6,14.93577099]
[1625106887679,9.9561,2198.7,2196.6,14.93577099]
[1625106887979,9.9561,2198.7,2196.7,2.35472858]
[1625106888177,9.9561,2198.7,2196.8,0.68922564]
[1625106888280,20.7243,2198.8,2196.8,6.99969581]
[1625106888382,9.9003,2198.8,2197.5,4.58550615]
[1625106888555,9.9003,2198.8,2197.7,11.28561178]
[1625106888631,9.9003,2198.8,2197.8,0.56317853]
[1625106888731,10.0638,2199.3,2197.8,0.56317853]
[1625106889035,17.17511101,2199.5,2197.8,0.56317853]
[1625106889132,17.17511101,2199.5,2197.7,0.02338611]
[1625106889133,10.0704,2199.5,2197.7,0.02338611]
[1625106889236,17.22309161,2199.5,2197.8,0.42726496]
[1625106889332,17.22309161,2199.5,2197.7,0.02338611]
[1625106889438,2.2899,2199.4,2197.7,0.02338611]
[1625106889532,2.2899,2199.4,2197.5,6.84360594]
[1625106889633,1.872,2199.4,2197.5,6.84360594]
[1625106889834,16.89289,2199.5,2197.7,5.03054206]
[1625106890032,16.89289,2199.5,2197.7,0.02054206]
[1625106890133,16.89289,2199.5,2197.6,0.02104231]
[1625106890237,10.0704,2199.5,2197.7,5.01]
[1625106890335,10.0704,2199.5,2197.8,0.41224436]
[1625106890439,10.0704,2199.5,2197.6,5.01]
[1625106890535,3.16862,2197.6,2197.4,0.48812452]
[1625106890637,3.16862,2197.6,2197.3,9.09493]
[1625106890934,9.053021,2199.3,2197.4,18.85]
[1625106891031,17.46326039,2199.5,2197.4,18.85]
[1625106891132,10.0704,2199.5,2197.4,18.99]
[1625106891234,10.0704,2199.5,2197.4,18.87023972]
[1625106891334,25.0704,2199.5,2197.4,18.85]
[1625106891636,32.29602159,2199.5,2197.4,18.85]
[1625106891833,10.0704,2199.5,2197.4,18.85]
[1625106891933,10.0704,2199.5,2197.5,0.46715491]
[1625106892265,0.30947771,2199.0,2197.5,0.46715491]
[1625106892376,0.29782235,2198.5,2197.4,1.61051091]
[1625106892444,0.29782235,2198.5,2196.5,10.7507]
[1625106892445,5.91142235,2198.5,2196.5,10.7507]
[1625106892543,5.01,2198.3,2196.4,11.37118]
[1625106892642,12.25574324,2198.2,2196.4,11.37118]
[1625106892948,5.01,2198.2,2196.4,11.37118]
[1625106893086,6.744,2198.2,2196.4,11.37118]
[1625106893286,5.01,2198.2,2196.4,11.37118]
[1625106893889,5.01,2198.2,2196.8,6.82509]
[1625106894122,14.48951484,2198.4,2196.8,6.82509]
[1625106894123,6.82562,2198.4,2196.8,6.82509]
[1625106894190,0.29782235,2198.5,2196.8,6.82509]
[1625106894388,10.672,2198.8,2196.9,7.35287534]
[1625106894488,10.672,2198.8,2196.9,0.42479162]
[1625106894692,10.672,2198.8,2196.8,7.1444892]
[1625106894790,10.672,2198.8,2196.9,7.0779979]
[1625106894897,10.672,2198.8,2197.7,6.82243]
[1625106894990,10.672,2198.8,2197.7,11.68313]
[1625106895191,10.672,2198.8,2197.7,12.08892513]
[1625106895340,10.672,2198.8,2197.9,5.01]
[1625106895537,10.535,2199.0,2197.7,4.8607]
[1625106895940,10.2787,2199.2,2197.7,4.8607]
[1625106896042,10.2787,2199.2,2197.8,0.43026838]
[1625106896241,10.2787,2199.2,2198.1,6.82144]
[1625106896343,10.2787,2199.2,2198.2,4.78081938]
[1625106896545,10.0875,2199.8,2198.2,4.3736]
[1625106896643,10.0875,2199.8,2198.3,0.58225077]
[1625106897293,25.0875,2199.8,2198.4,6.82032]
[1625106897394,25.0875,2199.8,2198.4,0.0210582]
[1625106897495,25.0875,2199.8,2198.2,9.09353]
[1625106897597,5.01,2199.6,2198.2,9.09353]
[1625106897795,25.0875,2199.8,2198.2,9.09353]
[1625106897902,10.0875,2199.8,2198.2,9.09353]
[1625106898001,10.0875,2199.8,2198.2,12.20663]
[1625106898299,10.0875,2199.8,2198.2,12.22938312]
[1625106898448,10.0875,2199.8,2198.8,10.81824]
[1625106898953,10.0875,2199.8,2198.8,3.9991]
[1625106899054,15.0,2199.7,2198.8,3.9991]
[1625106899150,19.4869,2199.7,2198.8,3.9991]
[1625106899251,19.4869,2199.7,2198.2,9.09353]
[1625106899648,5.01,2199.5,2198.2,9.09353]
[1625106899883,4.4869,2199.7,2198.2,9.09353]
[1625106900187,12.5478,2199.8,2198.2,9.09353]
[1625106900278,11.246,2199.8,2198.2,9.09353]
[1625106900487,10.0875,2199.8,2198.2,9.09353]
[1625106900640,10.0875,2199.8,2198.4,5.01]
[1625106900736,10.0875,2199.8,2198.5,11.87652138]
[1625106900833,10.0875,2199.8,2198.6,0.4582855]
[1625106901035,10.0875,2199.8,2199.0,6.81857]
[1625106901133,25.30069835,2200.4,2199.0,11.26497]
[1625106901236,25.30069835,2200.4,2199.1,0.481582]
[1625106901341,10.30069835,2200.4,2199.1,0.481582]
[1625106901433,10.0129,2200.4,2199.1,0.50324724]
[1625106901534,10.5882,2200.7,2199.1,0.50324724]
[1625106902129,10.5882,2200.7,2199.5,0.49392783]
[1625106902225,10.5882,2200.7,2199.4,1.6443]
[1625106902628,22.35432994,2200.6,2199.4,1.6443]
[1625106902727,22.04029273,2200.6,2199.4,1.6443]
[1625106902828,15.0,2200.6,2199.4,1.6443]
[1625106902927,7.13373936,2200.5,2199.4,1.6443]
[1625106903029,0.307731,2200.3,2199.4,1.6443]
[1625106903181,6.82014,2200.0,2199.4,1.6443]
[1625106903277,6.82014,2200.0,2198.4,10.2031]
[1625106903380,9.401251,2200.3,2198.2,9.09353]
[1625106903482,0.307731,2200.3,2198.2,9.09353]
[1625106903680,0.307731,2200.3,2198.3,0.04]
[1625106903885,14.10181,2200.6,2198.3,0.04]
[1625106903979,10.5882,2200.7,2198.3,0.47097547]
[1625106904081,10.5882,2200.7,2198.4,5.01]
[1625106904184,10.5882,2200.7,2199.4,6.81733]
[1625106904339,10.5882,2200.7,2199.4,10.70093]
[1625106905751,10.4335,2201.0,2199.5,0.42981157]
[1625106905851,10.4335,2201.0,2199.6,5.01]
[1625106905955,10.4335,2201.0,2199.7,7.70753441]
[1625106906044,10.4335,2201.0,2199.7,0.45416741]
[1625106906243,10.4335,2201.0,2199.7,5.01]
[1625106906344,10.4335,2201.0,2199.5,0.42343431]
[1625106906447,10.4335,2201.0,2199.6,5.01]
[1625106906985,10.4335,2201.0,2200.2,6.81448]
[1625106907086,1.0,2201.2,2200.2,6.81448]
[1625106907322,1.0,2201.2,2200.2,9.91868]
[1625106907915,1.0,2201.6,2200.2,9.91868]
[1625106908415,8.06959527,2201.6,2200.2,9.91868]
[1625106908514,1.0,2201.6,2200.2,9.91868]
[1625106908816,2.764,2201.6,2200.2,9.91868]
[1625106909156,1.0,2201.6,2200.2,9.91868]
[1625106909456,1.0,2201.6,2200.8,0.20124345]
[1625106909656,1.0,2201.6,2200.8,0.09893891]
[1625106909757,1.0,2201.6,2200.2,9.91868]
[1625106909858,1.0,2201.6,2200.2,6.81448]
[1625106909957,8.26470586,2201.6,2201.2,0.09893891]
[1625106910056,1.0,2201.6,2201.2,0.09893891]
[1625106910160,6.01,2201.6,2201.2,0.09893891]
[1625106910257,5.01,2201.3,2200.2,6.81448]
[1625106910358,11.6,2201.4,2200.1,9.08568]
[1625106910558,11.5,2201.4,2200.1,9.08568]
[1625106910860,5.01,2201.2,2200.1,9.08568]
[1625106911262,1.0,2201.4,2200.1,9.08568]
[1625106911368,11.8657,2201.5,2200.1,9.08568]
[1625106911464,11.8657,2201.5,2200.1,12.12698]
[1625106912316,10.8657,2201.5,2200.1,12.12698]
[1625106912415,10.8657,2201.5,2200.1,12.18698]
[1625106912565,10.8657,2201.5,2200.1,12.12698]
[1625106912970,10.8157,2201.5,2200.1,12.12698]
[1625106913182,10.8157,2201.5,2200.2,0.41367988]
[1625106913513,10.8157,2201.5,2200.1,12.12698]
[1625106914217,10.8157,2201.5,2200.3,6.8142]
[1625106914414,10.8157,2201.5,2200.4,0.44221446]
[1625106914716,10.8157,2201.5,2200.3,1.1469]
[1625106915417,10.8157,2201.5,2200.5,6.81385]
[1625106916262,1.0,2201.6,2200.5,6.81385]
[1625106916363,1.0,2201.6,2200.6,0.51659596]
[1625106916465,1.0,2201.6,2200.9,6.81265]
[1625106916764,11.6112,2202.2,2200.9,6.83395337]
[1625106916863,11.6112,2202.2,2200.9,8.06215337]
[1625106917363,11.6112,2202.2,2200.9,1.24950337]
[1625106917465,11.6112,2202.2,2200.9,1.2282]
[1625106917566,11.6112,2202.2,2201.1,6.81259]
[1625106917764,10.6112,2202.2,2201.1,10.28574355]
[1625106917957,10.6112,2202.2,2201.1,3.47315355]
[1625106918041,10.59065708,2202.2,2201.1,3.453]
[1625106918139,10.59065708,2202.2,2201.2,0.14]
[1625106918537,10.59065708,2202.2,2201.1,4.9314]
[1625106919136,10.59065708,2202.2,2201.5,6.8111]
[1625106919236,10.2373,2202.3,2201.6,0.44547193]
[1625106919439,9.9666,2202.7,2201.6,4.80967193]
[1625106919536,10.7983,2202.8,2201.6,4.83579724]
[1625106919936,5.01,2202.6,2201.6,4.83579724]
[1625106920037,5.01,2202.6,2201.6,4.80967193]
[1625106920163,5.01,2202.6,2201.6,4.3642]
[1625106920264,10.7983,2202.8,2201.6,4.3642]
[1625106922478,10.7983,2202.8,2201.7,6.81048]
[1625106923275,1.0,2203.0,2201.7,7.2159466]
[1625106923376,1.0,2203.0,2201.8,0.52389416]
[1625106923475,1.0,2203.0,2202.4,6.80824]
[1625106923672,1.0,2203.0,2202.4,11.84614]
[1625106923979,1.0,2203.6,2202.4,11.84614]
[1625106924076,1.0,2203.6,2202.4,12.27631911]
[1625106924177,1.0,2203.6,2202.4,11.86924005]
[1625106924277,1.0,2203.6,2202.4,5.06100005]
[1625106924376,1.0,2203.6,2202.4,5.0379]
[1625106924657,5.01,2203.5,2202.4,5.0379]
[1625106924713,4.96,2203.5,2202.1,9.07765]
[1625106925415,11.76905,2203.5,2202.1,9.07765]
[1625106926470,4.96,2203.5,2202.1,9.07765]
[1625106927230,11.85903939,2203.5,2202.1,9.07765]
[1625106927331,11.85903939,2203.5,2202.0,6.03248568]
[1625106927332,15.0,2203.4,2202.0,6.03248568]
[1625106927481,7.29369348,2203.3,2201.9,9.07873]
[1625106927581,22.29369348,2203.3,2201.9,9.07873]
[1625106927679,7.29369348,2203.3,2201.9,9.07873]
[1625106927782,1.0,2203.4,2202.0,6.17225957]
[1625106928379,5.16244483,2203.5,2202.0,6.17225957]
[1625106928484,6.81033,2203.1,2202.0,6.17225957]
[1625106928580,5.16244483,2203.5,2202.0,6.17225957]
[1625106928779,4.86,2203.5,2202.0,6.17225957]
[1625106929029,12.48429,2203.6,2202.0,6.17225957]
[1625106929030,12.48429,2203.6,2202.1,0.1]
[1625106929167,10.7112,2203.7,2202.1,0.1]
[1625106929271,10.7112,2203.7,2202.2,0.41676585]
[1625106929468,10.7112,2203.7,2202.2,6.88051826]
[1625106929572,10.7112,2203.7,2202.3,0.41365294]
[1625106929771,10.7112,2203.7,2202.2,8.06111826]
[1625106929868,6.80845,2203.6,2202.2,8.06111826]
[1625106929970,6.80845,2203.6,2202.5,3.5772]
[1625106930270,6.80845,2203.6,2202.6,5.92283476]
[1625106930370,5.01,2203.4,2202.6,5.92283476]
[1625106930471,6.80845,2203.6,2202.5,3.5772]
[1625106930472,7.80845,2203.6,2202.5,3.5772]
[1625106930773,7.80845,2203.6,2202.5,9.5271631]
[1625106930874,5.01,2203.4,2202.5,3.5772]
[1625106931077,5.01,2203.4,2202.4,7.98655]
[1625106931175,5.01,2203.3,2202.4,7.98655]
[1625106931525,6.80898,2203.5,2202.5,6.19904607]
[1625106931827,6.80898,2203.5,2202.4,10.19915]
[1625106931947,9.44930484,2203.4,2202.4,6.80835]
[1625106932036,25.44930484,2203.4,2201.9,9.07873]
[1625106932134,2.2762,2203.3,2201.9,9.07873]
[1625106932236,0.28910074,2202.9,2201.3,11.34713]
[1625106932343,4.55240074,2202.9,2201.2,9.08025]
[1625106932431,22.96753809,2202.8,2201.0,10.1241]
[1625106932526,25.23223809,2202.8,2200.6,1.64816729]
[1625106932628,3.40682,2202.4,2200.8,5.99740224]
[1625106932731,23.27433621,2202.3,2200.1,7.06802657]
[1625106932826,5.01,2202.1,2200.1,7.06802657]
[1625106932928,7.74669124,2202.0,2200.1,7.06802657]
[1625106933026,22.74669124,2202.0,2200.1,7.06802657]
[1625106933127,5.01,2201.8,2200.1,7.06802657]
[1625106933226,6.81454,2201.3,2200.1,7.06802657]
[1625106933332,10.41024,2201.3,2200.1,7.06802657]
[1625106933877,10.41024,2201.3,2200.0,9.08585]
[1625106933978,17.34629023,2201.3,2200.0,9.08585]
[1625106934077,17.3779701,2201.3,2200.0,9.08585]
[1625106934175,10.41024,2201.3,2200.1,6.00070999]
[1625106937454,10.41024,2201.3,2200.1,12.81533999]
[1625106937553,6.81454,2201.3,2200.2,0.48357855]
[1625106937752,6.81454,2201.3,2200.3,5.01]
[1625106937854,6.81454,2201.3,2200.4,6.43810724]
[1625106937963,6.81454,2201.3,2200.4,6.3813071]
[1625106938059,12.49344,2201.7,2200.4,6.3813071]
[1625106938238,12.49344,2201.7,2200.5,0.43114157]
[1625106938322,3.40693,2201.8,2200.5,0.43114157]
[1625106938921,6.81302,2201.6,2200.7,6.49470309]
[1625106939066,7.8133571,2202.1,2200.7,6.49470309]
[1625106939193,4.40662,2202.1,2200.9,5.01]
[1625106939231,21.017,2202.2,2201.0,6.90803202]
[1625106939321,21.017,2202.2,2201.0,7.31240248]
[1625106939425,21.017,2202.2,2201.0,0.40437046]
[1625106939524,5.01,2202.0,2200.9,1.6288]
[1625106939625,3.4069446,2201.8,2200.4,6.21134781]
[1625106940024,6.81418,2201.2,2200.4,6.21134781]
[1625106940123,6.81418,2201.2,2200.4,0.01947094]
[1625106940325,6.81418,2201.2,2200.2,6.42642961]
[1625106941346,9.08527,2201.5,2200.2,13.24040961]
[1625106941847,4.407,2201.6,2200.5,6.7968865]
[1625106941954,1.0,2201.6,2200.6,0.43475941]
[1625106942047,1.0,2201.6,2200.7,5.01]
[1625106942148,1.0,2201.6,2200.8,6.10341575]
[1625106942248,1.0,2201.6,2200.8,6.15659145]
[1625106942346,1.0,2201.6,2200.8,9.19559145]
[1625106942448,10.2122,2202.0,2200.9,0.06]
[1625106942807,10.2122,2202.0,2200.9,0.47946989]
[1625106943101,10.2122,2202.0,2200.8,9.60400042]
[1625106943507,10.2122,2202.0,2201.0,5.01]
[1625106943605,10.2122,2202.0,2201.1,6.24496926]
[1625106943704,10.2122,2202.0,2201.0,6.0018]
[1625106943809,10.2122,2202.0,2201.1,5.98371788]
[1625106945143,10.2122,2202.0,2201.0,2.4712]
[1625106945244,10.2122,2202.0,2201.1,5.90476256]
[1625106945443,10.2122,2202.0,2201.1,12.71652256]
[1625106945840,10.2122,2202.0,2201.1,6.81176]
[1625106946143,10.2122,2202.0,2201.2,5.92626865]
[1625106946242,1.0,2202.1,2201.2,5.87626865]
[1625106947400,1.0,2202.1,2201.3,6.81117]
[1625106947499,1.0,2202.1,2201.4,7.10858496]
[1625106947602,1.0,2202.6,2201.5,5.01]
[1625106947703,1.0,2202.6,2201.6,0.52176509]
[1625106947804,1.0,2202.6,2201.6,15.61139532]
[1625106947907,1.0,2202.6,2201.7,5.01]
[1625106948015,1.0,2202.6,2201.8,9.07862922]
[1625106948112,1.0,2202.6,2201.8,12.28622922]
[1625106948205,1.0,2202.6,2202.0,5.01]
[1625106948307,1.0,2202.6,2202.1,7.68315337]
[1625106948606,53.4243,2203.7,2202.1,7.68315337]
[1625106948607,42.8985,2203.7,2202.1,7.68315337]
[1625106948703,42.8985,2203.7,2202.2,0.53850217]
[1625106948909,42.8985,2203.7,2202.2,7.34624217]
[1625106949010,3.40423,2203.6,2202.2,0.53850217]
[1625106949111,3.40423,2203.6,2202.1,6.98383812]
[1625106949207,3.40423,2203.6,2202.1,7.00384002]
[1625106949466,3.40423,2203.6,2202.1,6.98383812]
[1625106949758,3.40423,2203.6,2202.1,7.00306221]
[1625106949860,3.40423,2203.6,2202.1,6.98383812]
[1625106950258,3.35423,2203.6,2202.1,6.98383812]
[1625106950460,6.80922,2203.2,2202.1,6.98383812]
[1625106951898,3.35423,2203.6,2202.1,6.98383812]
[1625106952002,5.01,2203.5,2202.2,0.438412]
[1625106952099,5.01,2203.4,2202.1,6.98383812]
[1625106952199,5.01,2203.4,2201.8,9.07827]
[1625106952200,5.01,2203.4,2201.9,6.39345245]
[1625106952418,5.01,2203.4,2201.9,6.37614441]
[1625106952519,5.01,2203.4,2201.6,7.76014289]
[1625106952620,5.01,2203.4,2201.6,7.25284405]
[1625106953321,1.0,2203.5,2201.6,7.25284405]
[1625106953322,6.81036,2202.9,2201.6,14.06246405]
[1625106953421,10.07862,2203.5,2201.6,14.06246405]
[1625106953522,10.07862,2203.5,2201.6,17.38264276]
[1625106953623,10.07862,2203.5,2201.6,22.37149823]
[1625106953722,10.07862,2203.5,2201.7,0.43492311]
[1625106953826,10.07862,2203.5,2201.6,15.48262276]
[1625106954101,10.07862,2203.5,2201.6,15.50199484]
[1625106954202,10.07862,2203.5,2201.6,15.48262276]
[1625106954302,9.07862,2203.5,2201.6,15.50362838]
[1625106954405,6.80886,2203.3,2201.9,7.64097034]
[1625106954510,6.80886,2203.3,2201.9,1.1868]
[1625106954609,9.07903,2203.4,2201.9,1.1868]
[1625106954610,9.07903,2203.4,2202.0,7.33078424]
[1625106954706,4.35423,2203.6,2202.0,7.33078424]
[1625106954806,1.0,2203.6,2202.0,7.33078424]
[1625106954904,1.0,2203.6,2202.2,5.01]
[1625106955005,1.0,2203.6,2202.3,7.5601864]
[1625106955309,42.8985,2203.7,2202.3,7.98294873]
[1625106955408,42.8985,2203.7,2202.4,6.80736]
[1625106955508,42.8985,2203.7,2202.5,6.65851975]
[1625106955606,32.0951,2203.7,2202.5,6.65851975]
[1625106956352,33.0951,2203.7,2202.5,6.65851975]
[1625106957350,1.0,2203.6,2202.5,13.46556975]
[1625106957450,1.0,2203.6,2202.5,6.80705]
[1625106957549,1.0,2203.6,2202.6,6.2322027]
[1625106958153,1.0,2203.6,2202.5,6.80705]
[1625106958602,32.0451,2203.7,2202.6,16.15]
[1625106960207,32.0451,2203.7,2202.5,6.80705]
[1625106960408,6.80767,2203.6,2202.5,6.80705]
[1625106960607,6.75767,2203.6,2202.5,6.80705]
[1625106961051,6.70767,2203.6,2202.5,6.80705]
[1625106961650,32.0451,2203.7,2202.5,6.80705]
[1625106961750,32.0451,2203.7,2202.6,0.14]
[1625106962051,32.0451,2203.7,2202.5,3.5093]
[1625106962854,32.02902719,2203.7,2202.8,6.80618]
[1625106963007,32.02902719,2203.7,2202.9,6.43740948]
[1625106963298,21.34682719,2203.7,2202.9,6.43740948]
[1625106963497,10.49902719,2203.7,2202.9,6.43740948]
[1625106963597,10.49902719,2203.7,2203.0,0.40570778]
[1625106964298,10.49902719,2203.7,2202.9,6.43740948]
[1625106964398,10.49902719,2203.7,2203.0,0.40498905]
[1625106964500,10.49902719,2203.7,2203.0,0.48498905]
[1625106964600,6.80583,2204.1,2203.0,0.08]
[1625106964699,6.80583,2204.1,2203.0,4.83705815]
[1625106964797,6.80583,2204.1,2203.1,6.58045728]
[1625106964902,6.80583,2204.1,2203.2,0.40951218]
[1625106964999,6.80583,2204.1,2203.2,0.42921767]
[1625106965251,18.19879,2204.2,2203.2,0.42921767]
[1625106965252,6.85,2204.2,2203.2,0.42921767]
[1625106965354,6.8,2204.2,2203.2,1.72881767]
[1625106965453,6.8,2204.2,2203.3,6.26598306]
[1625106965551,6.8,2204.2,2203.4,0.4670468]
[1625106965955,23.9567,2204.7,2203.4,0.4670468]
[1625106966055,6.80595,2204.2,2203.3,6.36737639]
[1625106966157,6.80595,2204.2,2203.3,5.93516932]
[1625106966959,13.8432,2204.7,2203.0,7.04952924]
[1625106967056,13.8432,2204.7,2203.2,6.76808097]
[1625106967260,10.4404,2204.7,2203.3,0.41848034]
[1625106967620,10.4404,2204.7,2203.3,6.88051781]
[1625106967622,10.4404,2204.7,2203.4,7.59796419]
[1625106967712,10.4404,2204.7,2203.5,0.43839928]
[1625106968414,10.4404,2204.7,2203.7,6.80383]
[1625106968515,10.4404,2204.7,2203.8,6.44652853]
[1625106968616,10.4404,2204.7,2203.8,6.85560313]
[1625106968713,10.4404,2204.7,2203.8,6.44652853]
[1625106969014,10.4404,2204.7,2203.9,0.06]
[1625106969212,10.4404,2204.7,2203.8,7.57792853]
[1625106970965,11.4404,2204.7,2203.8,6.44652853]
[1625106971066,11.4404,2204.7,2203.5,6.65897916]
[1625106971365,11.4404,2204.7,2203.7,5.01]
[1625106971464,11.4404,2204.7,2203.8,7.16685314]
[1625106971465,11.47336572,2204.7,2203.8,7.16685314]
[1625106972115,10.47336572,2204.7,2203.8,7.16685314]
[1625106972412,10.47336572,2204.7,2204.1,6.80228]
[1625106972514,0.03296572,2204.7,2204.2,5.97669925]
[1625106972613,10.41846572,2204.8,2204.2,5.97669925]
[1625106972712,6.85,2205.2,2204.2,5.97669925]
[1625106972811,6.85,2205.2,2204.3,0.48964866]
[1625106974114,7.85,2205.2,2204.2,6.3781458]
[1625106974225,7.85,2205.2,2204.2,0.40144655]
[1625106974421,7.8,2205.2,2204.1,6.80228]
[1625106974772,1.0,2205.2,2204.1,6.80228]
[1625106975172,18.00509,2205.3,2204.1,6.80228]
[1625106975575,17.50509,2205.3,2204.1,6.80228]
[1625106976076,17.50509,2205.3,2204.2,0.1]
[1625106976077,10.702,2205.3,2204.2,0.1]
[1625106976179,10.702,2205.3,2204.3,5.01]
[1625106976180,9.702,2205.3,2204.3,5.01]
[1625106976280,9.702,2205.3,2204.4,5.9597214]
[1625106976375,9.702,2205.3,2204.2,0.1]
[1625106976594,9.702,2205.3,2203.9,9.0697]
[1625106976598,6.79517873,2205.2,2203.9,9.0697]
[1625106976896,6.69517873,2205.2,2203.4,19.83476]
[1625106977095,21.69517873,2205.2,2203.4,19.83476]
[1625106977195,29.49787873,2205.2,2203.4,19.83476]
[1625106977293,5.01,2205.0,2203.4,19.83476]
[1625106977391,5.01,2205.0,2203.4,10.763]
[1625106977392,10.34360213,2204.9,2203.4,10.763]
[1625106977492,0.08,2204.8,2203.2,9.07286]
[1625106977590,5.01,2204.7,2203.2,9.07286]
[1625106977794,6.92756722,2204.6,2203.2,9.07286]
[1625106977892,5.01,2204.6,2203.2,9.07286]
[1625106978403,6.80556,2204.2,2203.2,9.07286]
[1625106978491,11.72476,2204.2,2203.2,9.07286]
[1625106979015,11.72476,2204.2,2203.3,5.97314382]
[1625106979117,4.9192,2204.2,2203.3,5.97314382]
[1625106979619,4.9192,2204.2,2203.3,8.58634014]
[1625106979719,1.0,2204.6,2203.3,8.58634014]
[1625106980318,6.80438,2204.6,2203.3,15.39128014]
[1625106980418,6.76548,2204.6,2203.3,15.39128014]
[1625106980821,6.76548,2204.6,2203.4,5.92759192]
[1625106981463,5.01,2204.4,2203.4,5.92759192]
[1625106981567,6.76548,2204.6,2203.4,12.73218192]
[1625106986892,6.76548,2204.6,2203.4,12.63218192]
[1625106987094,6.76548,2204.6,2203.5,0.40425037]
[1625106987197,6.76548,2204.6,2203.5,0.12]
[1625106987294,6.76548,2204.6,2203.6,6.80401]
[1625106987695,6.76548,2204.6,2203.7,6.0904555]
[1625106988059,6.76548,2204.6,2203.3,6.21464627]
[1625106988168,4.40256,2204.8,2203.4,2.61319632]
[1625106988267,1.0,2204.8,2204.0,6.80291]
[1625106988366,1.0,2204.8,2204.1,6.47958337]
[1625106988462,1.0,2204.8,2204.1,9.78428337]
[1625106988861,23.2204734,2205.3,2204.1,9.78428337]
[1625106988962,23.2204734,2205.3,2204.1,9.80413203]
[1625106989564,5.0,2204.6,2204.1,9.80413203]
[1625106989662,5.0,2204.6,2204.1,9.78428337]
[1625106989861,5.0,2204.6,2204.2,0.14]
[1625106990404,5.0,2204.6,2204.3,6.80191]
[1625106990904,4.994,2204.6,2204.3,6.80191]
[1625106992933,4.994,2204.6,2204.1,9.06921]
[1625106994233,4.994,2204.6,2204.1,9.01921]
[1625106998753,4.494,2204.6,2204.1,9.01921]
[1625106999184,4.494,2204.6,2204.2,0.08]
[1625106999284,4.494,2204.6,2204.2,6.2927169]
[1625106999936,4.494,2204.6,2204.2,10.5903169]
[1625107000436,4.494,2204.6,2204.2,17.3928569]
[1625107000639,4.494,2204.6,2204.3,0.04]
[1625107001237,4.494,2204.6,2204.2,10.5103169]
[1625107001487,4.494,2204.6,2204.3,6.80218]
[1625107001887,4.494,2204.6,2204.2,6.2127169]
[1625107001990,4.494,2204.6,2204.1,9.01921]
[1625107005541,4.494,2204.6,2204.1,8.96921]
[1625107005741,4.494,2204.6,2204.2,0.14]
[1625107005965,4.494,2204.6,2204.2,9.35141253]
[1625107006070,4.494,2204.6,2204.4,6.80198]
[1625107006167,4.494,2204.6,2204.4,12.53796287]
[1625107006466,4.494,2204.6,2204.5,5.70665954]
[1625107006568,4.494,2204.6,2204.5,5.83913394]
[1625107007065,4.494,2204.6,2204.3,9.06931]
[1625107007666,4.494,2204.6,2204.3,8.76931]
[1625107012638,4.494,2204.6,2204.4,5.75369837]
[1625107012836,4.494,2204.6,2204.5,11.40208]
[1625107013358,4.494,2204.6,2204.5,17.41610393]
[1625107013654,4.494,2204.6,2204.5,12.81610393]
[1625107013857,4.494,2204.6,2204.5,6.80208]
[1625107013954,4.494,2204.6,2204.5,12.90056602]
[1625107014656,4.494,2204.6,2204.5,6.80208]
[1625107017397,4.494,2204.6,2204.5,12.74485937]
[1625107017596,4.494,2204.6,2204.5,12.82485937]
[1625107018448,4.494,2204.6,2204.5,12.74485937]
[1625107018645,4.494,2204.6,2204.5,6.80208]
[1625107018847,4.494,2204.6,2204.5,6.8176741]
[1625107018948,4.494,2204.6,2204.5,12.0176741]
[1625107019350,4.494,2204.6,2204.5,6.8176741]
[1625107019908,8.205,2204.6,2204.5,7.41e-05]
[1625107020006,14.85742274,2204.6,2204.5,7.41e-05]